bitfinex/quotes_SOLUSD_20220105
["timestamp","ask_amount","ask_price","bid_price","bid_amount"]
[1641426899099,32.67681351,155.45,155.36,10.61702535]
[1641426899298,42.33291351,155.45,155.36,10.61702535]
[1641426899899,32.67681351,155.45,155.36,10.61702535]
[1641426900100,32.67681351,155.45,155.37,0.25]
[1641426900299,32.67681351,155.45,155.38,17.5739]
[1641426900900,32.67681351,155.45,155.39,0.26]
[1641426901302,5.80439994,155.4,155.39,0.26]
[1641426901699,5.80439994,155.4,155.38,7.92]
[1641426902302,6.06439994,155.4,155.38,7.92]
[1641426904107,5.80439994,155.4,155.38,7.92]
[1641426905335,6.06439994,155.4,155.38,7.92]
[1641426905935,6.06439994,155.4,155.39,0.26]
[1641426906135,0.26,155.4,155.39,0.26]
[1641426907538,0.26,155.4,155.38,9.6545]
[1641426907539,0.26,155.4,155.36,7.92]
[1641426907738,40.30338247,155.41,155.36,7.92]
[1641426910640,0.25,155.4,155.36,7.92]
[1641426910841,29.37147347,155.4,155.36,7.92]
[1641426911039,29.63147347,155.4,155.36,7.92]
[1641426912642,29.63147347,155.4,155.22,98.97]
[1641426912851,105.85707347,155.4,155.26,7.92]
[1641426913461,153.44977347,155.4,155.26,7.92]
[1641426913859,163.10807347,155.4,155.26,7.92]
[1641426914362,7.28577473,155.39,155.26,7.92]
[1641426914561,2.41253013,155.38,155.26,7.92]
[1641426914763,9.6625,155.32,155.26,7.92]
[1641426914964,32.24149422,155.31,155.26,7.92]
[1641426915362,32.50149422,155.31,155.26,7.92]
[1641426916062,42.16429422,155.31,155.26,7.92]
[1641426917391,42.16429422,155.31,155.25,39.41466935]
[1641426918192,42.66429422,155.31,155.25,39.41466935]
[1641426918393,42.16429422,155.31,155.25,39.41466935]
[1641426919696,42.66429422,155.31,155.25,39.41466935]
[1641426920697,0.25,155.3,155.25,39.41466935]
[1641426920897,30.80669658,155.27,155.25,39.41466935]
[1641426921095,34.80439994,155.26,155.25,39.41466935]
[1641426921495,35.06439994,155.26,155.25,39.41466935]
[1641426921996,6.06439994,155.26,155.25,39.41466935]
[1641426922797,15.73029994,155.26,155.25,39.41466935]
[1641426923199,9.9259,155.26,155.25,39.67466935]
[1641426923399,15.73029994,155.26,155.25,39.41466935]
[1641426925606,5.80439994,155.26,155.25,39.41466935]
[1641426925799,28.12511345,155.27,155.25,39.41466935]
[1641426926401,32.2146,155.32,155.25,39.41466935]
[1641426926603,9.6635,155.3,155.25,39.41466935]
[1641426926801,9.6635,155.3,155.25,42.31363365]
[1641426927002,22.9714,155.33,155.25,42.31363365]
[1641426927204,27.97304108,155.35,155.26,0.25]
[1641426927403,23.24303172,155.34,155.26,0.25]
[1641426927801,32.90373172,155.34,155.27,9.6616]
[1641426928005,2.34368627,155.33,155.27,9.6616]
[1641426928502,2.60368627,155.33,155.27,9.6616]
[1641426928703,2.34368627,155.33,155.27,9.6616]
[1641426929705,2.34368627,155.33,155.28,0.25]
[1641426929904,12.00508627,155.33,155.28,0.25]
[1641426930105,12.26508627,155.33,155.28,0.25]
[1641426930306,12.26508627,155.33,155.27,9.6616]
[1641426930508,12.26508627,155.33,155.28,0.25]
[1641426931311,12.26508627,155.33,155.28,9.9109]
[1641426932108,12.26508627,155.33,155.28,12.61678073]
[1641426934412,12.26508627,155.33,155.28,9.9109]
[1641426935113,12.26508627,155.33,155.28,9.6609]
[1641426935342,12.26508627,155.33,155.25,39.41466935]
[1641426936140,12.76508627,155.33,155.25,39.41466935]
[1641426937144,12.76508627,155.33,155.25,0.00466935]
[1641426937345,43.91738627,155.33,155.25,0.00466935]
[1641426938148,0.25,155.32,155.25,0.00466935]
[1641426938348,2.8908494,155.28,155.25,0.00466935]
[1641426938551,3.1508494,155.28,155.25,0.00466935]
[1641426938749,5.80439994,155.27,155.25,0.00466935]
[1641426939149,6.06439994,155.27,155.25,0.00466935]
[1641426939349,15.73109994,155.27,155.25,0.00466935]
[1641426941156,15.47109994,155.27,155.25,0.00466935]
[1641426942454,15.73109994,155.27,155.25,0.00466935]
[1641426943257,78.7196,155.26,155.25,0.00466935]
[1641426943458,88.8894,155.26,155.25,0.00466935]
[1641426943657,89.3994,155.26,155.25,0.00466935]
[1641426944058,43.0,155.25,155.15,7.92]
[1641426944258,32.2324,155.23,155.15,7.92]
[1641426944457,9.6696,155.2,155.15,7.92]
[1641426944657,27.63153991,155.19,155.15,7.92]
[1641426945059,30.50359582,155.19,155.15,7.92]
[1641426945462,30.50359582,155.19,155.1,9.39315897]
[1641426945860,40.17339582,155.19,155.1,9.39315897]
[1641426946060,40.17339582,155.19,155.1,7.92]
[1641426946261,40.67339582,155.19,155.1,7.92]
[1641426947163,0.25,155.18,155.1,7.92]
[1641426947362,9.6729,155.15,155.1,7.92]
[1641426947563,29.4870173,155.14,155.1,7.92]
[1641426947969,29.7470173,155.14,155.1,7.92]
[1641426949770,39.4203173,155.14,155.1,7.92]
[1641426950477,39.4203173,155.14,155.06,17.5938]
[1641426950674,39.4203173,155.14,155.06,7.92]
[1641426950873,39.9203173,155.14,155.06,7.92]
[1641426952575,39.9203173,155.14,154.97,48.8625]
[1641426952774,85.5543173,155.14,154.98,7.92]
[1641426952977,9.6789,155.06,154.98,7.92]
[1641426953175,2.40475073,155.05,154.98,7.92]
[1641426953374,26.88359788,155.05,154.98,17.5987]
[1641426953576,27.14359788,155.05,154.99,0.25]
[1641426954190,27.14359788,155.05,154.98,7.92]
[1641426954391,36.82249788,155.05,154.98,7.92]
[1641426955595,36.82249788,155.05,155.0,2.50662668]
[1641426955796,24.73884715,155.05,155.0,2.50662668]
[1641426956094,24.73884715,155.05,155.01,0.25]
[1641426956494,0.26,155.05,155.01,1.72315897]
[1641426956896,2.9316378,155.08,155.01,0.25]
[1641426957093,3.1916378,155.08,155.01,0.25]
[1641426957494,23.94699754,155.07,155.01,9.9266]
[1641426957895,24.20699754,155.07,155.01,9.9266]
[1641426958297,24.20699754,155.07,155.01,8.17]
[1641426959097,33.62459754,155.07,155.01,7.92]
[1641426960100,23.94699754,155.07,155.01,7.92]
[1641426960301,23.94699754,155.07,155.01,17.5968]
[1641426960501,24.20699754,155.07,155.01,17.5968]
[1641426961704,33.88459754,155.07,155.01,7.92]
[1641426962604,9.6776,154.99,154.94,5.13287354]
[1641426962801,9.6776,154.99,154.94,13.05287354]
[1641426963003,2.669024,154.98,154.94,13.05287354]
[1641426963406,32.11363348,154.98,154.94,13.05287354]
[1641426963603,32.11363348,154.98,154.94,7.92]
[1641426963801,32.11363348,154.98,154.95,3.9089]
[1641426965301,41.79703348,154.98,154.95,3.9089]
[1641426965502,41.79703348,154.98,154.96,0.26]
[1641426965701,41.79703348,154.98,154.95,3.9089]
[1641426966203,41.79703348,154.98,154.92,7.92]
[1641426966403,41.79703348,154.98,154.93,3.9089]
[1641426966603,41.79703348,154.98,154.93,4.1589]
[1641426967703,41.79703348,154.98,154.93,6.38222832]
[1641426967903,41.79703348,154.98,154.93,4.1589]
[1641426968102,41.79703348,154.98,154.93,3.9089]
[1641426969807,9.6776,154.99,154.93,3.9089]
[1641426970006,9.6776,154.99,154.94,8.17]
[1641426970407,9.6776,154.99,154.95,1.47315897]
[1641426970608,9.6776,154.99,154.96,8.17]
[1641426970808,9.6776,154.99,154.97,3.00915274]
[1641426971008,9.6776,154.99,154.98,54.92]
[1641426971209,9.6776,154.99,154.98,55.17]
[1641426971808,1.3029833,155.03,154.99,9.6699]
[1641426972208,1.3029833,155.03,155.0,9.9278]
[1641426972409,5.80439994,155.02,155.0,9.9278]
[1641426972808,27.71302753,155.04,155.01,0.26]
[1641426973009,27.71302753,155.04,155.0,9.9278]
[1641426973308,9.6777,155.07,155.0,9.9278]
[1641426973607,9.6777,155.07,155.01,3.9089]
[1641426974012,9.9377,155.07,155.02,2.65514825]
[1641426974210,0.26,155.07,155.02,2.65514825]
[1641426974410,27.02292373,155.09,155.03,0.25]
[1641426974810,3.64632278,155.13,155.03,0.25]
[1641426975010,3.64632278,155.13,155.03,8.17]
[1641426975510,9.6738,155.14,155.03,17.8459]
[1641426975910,29.07707772,155.13,155.03,17.8459]
[1641426976311,38.75097772,155.13,155.03,17.8459]
[1641426976514,38.75097772,155.13,155.05,2.7502528]
[1641426976714,38.75097772,155.13,155.06,0.25]
[1641426977814,38.75097772,155.13,155.06,9.9241]
[1641426978014,39.01097772,155.13,155.06,9.9241]
[1641426979415,39.01097772,155.13,155.05,9.68124019]
[1641426979614,39.01097772,155.13,155.07,3.9089]
[1641426980018,0.25,155.12,155.07,3.9089]
[1641426980218,37.0,155.09,155.03,1.76124019]
[1641426980621,31.67882946,155.08,155.03,1.76124019]
[1641426981018,31.93882946,155.08,155.03,1.76124019]
[1641426981624,24.70825795,155.05,155.03,1.76124019]
[1641426981923,5.80439994,155.04,155.03,4.019e-05]
[1641426982123,5.80439994,155.04,154.95,5.13287354]
[1641426982322,6.06439994,155.04,154.94,7.92]
[1641426982525,5.80439994,155.04,154.95,3.03716294]
[1641426982723,15.48449994,155.04,154.95,3.03716294]
[1641426982924,25.78073912,155.03,154.95,3.03716294]
[1641426983124,25.78073912,155.03,154.96,9.6801]
[1641426983321,25.78073912,155.03,154.95,0.25]
[1641426983722,35.46103912,155.03,154.94,7.92]
[1641426983921,35.72103912,155.03,154.94,7.92]
[1641426984324,35.72103912,155.03,154.9,20.47460652]
[1641426984522,36.22103912,155.03,154.9,20.47460652]
[1641426985122,36.22103912,155.03,154.91,0.25]
[1641426985323,36.22103912,155.03,154.91,9.9336]
[1641426985523,36.22103912,155.03,154.91,13.58353515]
[1641426986225,9.6831,154.99,154.91,13.58353515]
[1641426986423,32.527,155.02,154.92,3.64993515]
[1641426986624,0.26,154.99,154.92,3.64993515]
[1641426986825,0.26,154.99,154.92,13.33313515]
[1641426987223,33.037,155.02,154.92,13.33313515]
[1641426987424,24.72887477,154.97,154.92,9.6832]
[1641426987624,24.98887477,154.97,154.92,9.6832]
[1641426987846,24.98887477,154.97,154.91,3.64993515]
[1641426988048,24.98887477,154.97,154.9,10.79070652]
[1641426988848,34.67277477,154.97,154.91,9.6837]
[1641426989050,34.67277477,154.97,154.91,9.9337]
[1641426989249,34.67277477,154.97,154.91,13.58366016]
[1641426989949,24.98887477,154.97,154.91,13.58366016]
[1641426990150,0.26,154.97,154.91,9.9337]
[1641426990551,73.6821,155.01,154.93,2.97824291]
[1641426990749,0.26,155.01,154.93,10.89824291]
[1641426990949,173.4239,155.04,154.94,0.25]
[1641426991150,28.23202827,155.03,154.94,0.25]
[1641426991451,9.6818,155.01,154.95,9.6809]
[1641426991654,28.23202827,155.03,154.97,2.50631518]
[1641426992851,28.23202827,155.03,154.97,12.18631518]
[1641426993249,28.49202827,155.03,154.97,12.18631518]
[1641426994250,28.49202827,155.03,154.98,0.25]
[1641426994951,28.49202827,155.03,154.97,2.50631518]
[1641426995351,38.17212827,155.03,154.97,2.50631518]
[1641426995552,0.25,155.02,154.96,9.6807]
[1641426995852,0.25,155.02,154.93,7.92]
[1641426996052,0.25,155.02,154.94,0.25]
[1641426996653,28.49202827,155.03,154.95,2.38221048]
[1641426996853,9.6807,155.02,154.96,0.25]
[1641426997053,9.9407,155.02,154.96,0.25]
[1641426998154,9.9407,155.02,154.95,2.38221048]
[1641426998752,9.9407,155.02,154.96,9.6807]
[1641426999153,75.9513,155.07,154.98,2.94967068]
[1641426999653,75.9513,155.07,154.99,0.25]
[1641427000053,23.64649227,155.06,154.99,0.25]
[1641427000654,23.90649227,155.06,154.99,0.25]
[1641427000854,23.90649227,155.06,155.01,9.6775]
[1641427001054,23.64649227,155.06,155.01,11.44030577]
[1641427001258,23.64649227,155.06,155.02,0.25]
[1641427001854,75.9513,155.07,155.02,0.25]
[1641427002156,75.9513,155.07,155.02,9.9269]
[1641427002357,9.6772,155.08,155.02,9.9269]
[1641427002555,3.64632278,155.13,155.02,9.9269]
[1641427002556,35.90122278,155.13,155.02,9.9269]
[1641427002856,23.60324321,155.12,155.03,7.92]
[1641427003056,23.86324321,155.12,155.07,9.6736]
[1641427003256,23.86324321,155.12,155.08,2.64112766]
[1641427003456,0.26,155.12,155.08,2.64112766]
[1641427003861,0.26,155.14,155.08,2.64112766]
[1641427004062,126.42832278,155.17,155.08,2.64112766]
[1641427004463,27.65080061,155.16,155.08,2.64112766]
[1641427004865,9.6734,155.14,155.08,12.31412766]
[1641427005063,27.18057072,155.13,155.08,12.31412766]
[1641427005466,27.44057072,155.13,155.08,12.31412766]
[1641427006670,27.44057072,155.13,155.08,9.673]
[1641427006870,37.11467072,155.13,155.07,9.6739]
[1641427007069,37.11467072,155.13,155.08,0.25]
[1641427007273,37.11467072,155.13,155.05,7.92]
[1641427007474,37.11467072,155.13,155.06,0.25]
[1641427007875,0.25,155.12,155.06,0.25]
[1641427008276,9.6737,155.14,155.06,9.9245]
[1641427008471,3.64632278,155.16,155.06,9.9245]
[1641427008673,3.64632278,155.16,155.08,2.33890526]
[1641427009173,3.64632278,155.16,155.09,8.17]
[1641427009473,23.77737885,155.16,155.09,8.17]
[1641427009673,23.77737885,155.16,155.11,9.6713]
[1641427009874,9.6715,155.18,155.12,2.51216192]
[1641427010077,3.64632278,155.19,155.12,2.76216192]
[1641427010273,3.64632278,155.19,155.13,7.92]
[1641427010477,3.64632278,155.2,155.13,7.92]
[1641427010874,28.83951564,155.19,155.13,7.92]
[1641427011478,29.09951564,155.19,155.13,7.92]
[1641427011679,9.9219,155.18,155.1,17.5919]
[1641427011877,9.9219,155.18,155.1,7.92]
[1641427012076,10.1819,155.18,155.1,7.92]
[1641427012278,9.9219,155.18,155.1,7.92]
[1641427012680,9.9219,155.18,155.11,0.25]
[1641427012978,9.6719,155.18,155.11,0.25]
[1641427013176,0.25,155.17,155.11,2.45167831]
[1641427013577,9.9319,155.18,155.11,2.45167831]
[1641427013779,9.9319,155.18,155.11,0.25]
[1641427014105,9.9319,155.18,155.09,0.25]
[1641427014908,9.9319,155.18,155.11,9.6711]
[1641427015705,9.9319,155.18,155.12,0.25]
[1641427015904,9.9319,155.18,155.11,9.6711]
[1641427016305,0.26,155.18,155.11,9.6711]
[1641427016505,38.77021564,155.19,155.11,9.6711]
[1641427017106,38.77021564,155.19,155.12,0.25]
[1641427017507,38.77021564,155.19,155.13,2.47469014]
[1641427017910,29.09951564,155.19,155.13,2.47469014]
[1641427018108,0.26,155.19,155.13,2.47469014]
[1641427018510,24.7216,155.22,155.14,0.25]
[1641427018911,110.89269914,155.25,155.14,9.9191]
[1641427019111,110.89269914,155.25,155.15,7.92]
[1641427019313,110.89269914,155.25,155.16,2.5829942]
[1641427019513,110.89269914,155.25,155.16,2.8329942]
[1641427020212,110.89269914,155.25,155.18,9.6665]
[1641427020418,111.15269914,155.25,155.18,9.6665]
[1641427020616,0.25,155.24,155.18,9.6665]
[1641427020814,0.25,155.24,155.16,0.25]
[1641427021616,0.25,155.24,155.13,17.59]
[1641427022014,9.9177,155.24,155.13,7.92]
[1641427022418,10.6777,155.24,155.13,7.92]
[1641427022817,7.06856088,155.23,155.13,7.92]
[1641427023019,7.32856088,155.23,155.13,7.92]
[1641427023218,9.6713,155.18,155.13,7.92]
[1641427023419,23.3672365,155.17,155.13,7.92]
[1641427023619,23.6272365,155.17,155.13,7.92]
[1641427028722,23.6272365,155.17,155.11,9.6713]
[1641427028922,33.2989365,155.17,155.12,0.25]
[1641427030024,33.2989365,155.17,155.11,0.25]
[1641427030927,0.25,155.16,155.1,7.92]
[1641427031123,9.6732,155.15,155.08,7.92]
[1641427031528,9.9332,155.15,155.09,0.25]
[1641427031924,24.65305436,155.14,155.09,0.25]
[1641427032126,24.91305436,155.14,155.09,0.25]
[1641427032325,34.58675436,155.14,155.09,0.25]
[1641427033531,0.25,155.13,155.03,7.92]
[1641427033727,9.6762,155.09,155.03,7.92]
[1641427033928,98.5019,155.13,155.0,13.05287354]
[1641427034128,0.26,155.09,155.0,13.05287354]
[1641427034530,0.26,155.09,155.01,2.17283022]
[1641427034728,9.6779,155.07,155.01,2.17283022]
[1641427034928,55.3267476,155.1,155.01,2.17283022]
[1641427035131,55.5867476,155.1,155.02,0.25]
[1641427035329,56.0867476,155.1,154.98,7.92]
[1641427035530,56.0867476,155.1,154.96,7.92]
[1641427035729,9.6809,155.02,154.96,7.92]
[1641427035930,32.2695,155.06,154.96,7.92]
[1641427036135,0.26,155.02,154.97,2.21476625]
[1641427036531,0.25,155.05,154.97,2.21476625]
[1641427036933,0.25,155.05,154.99,9.6785]
[1641427036934,9.9293,155.05,154.99,9.6785]
[1641427037132,9.9293,155.05,155.0,2.35439232]
[1641427037333,0.51,155.05,155.0,2.35439232]
[1641427037733,0.51,155.05,154.98,0.25]
[1641427037938,0.25,155.05,154.99,9.6789]
[1641427038535,23.45139864,155.06,154.99,9.6789]
[1641427039134,23.45139864,155.06,154.99,11.86484404]
[1641427039337,0.26,155.06,154.99,11.86484404]
[1641427039536,9.6781,155.06,154.99,11.86484404]
[1641427039738,3.64632278,155.12,155.04,9.6753]
[1641427039938,3.64632278,155.12,155.04,7.92]
[1641427040140,3.64632278,155.12,155.06,2.49679113]
[1641427040561,73.3253,155.13,155.06,2.49679113]
[1641427041760,82.999,155.13,155.07,9.6737]
[1641427041960,82.999,155.13,155.06,2.49679113]
[1641427042161,28.49917922,155.12,155.06,2.49679113]
[1641427042564,0.25,155.11,155.04,7.92]
[1641427042862,0.25,155.11,155.05,0.25]
[1641427043064,0.25,155.11,155.06,9.6745]
[1641427043266,0.25,155.11,155.05,0.25]
[1641427043664,0.25,155.11,155.05,2.51807856]
[1641427043870,0.25,155.11,155.04,7.92]
[1641427044066,9.9251,155.11,155.04,7.92]
[1641427044473,10.1851,155.11,155.04,7.92]
[1641427044867,10.1851,155.11,155.01,10.75038216]
[1641427045068,10.1851,155.11,155.02,0.25]
[1641427045271,10.1851,155.11,155.02,9.9269]
[1641427045470,10.6851,155.11,155.02,9.9269]
[1641427046670,10.6851,155.11,155.02,0.25]
[1641427048070,10.6851,155.11,155.01,20.42798216]
[1641427050071,3.35754429,155.1,155.02,0.25]
[1641427050273,24.92487197,155.09,155.02,0.25]
[1641427050472,22.84311877,155.06,155.02,0.25]
[1641427050874,23.10311877,155.06,155.01,17.5976]
[1641427051274,23.10311877,155.06,155.01,7.92]
[1641427052272,9.9286,155.05,155.01,7.92]
[1641427052475,10.1886,155.05,155.01,7.92]
[1641427053074,9.9386,155.05,155.01,7.92]
[1641427053473,9.9386,155.05,154.97,7.92]
[1641427053674,9.6815,155.01,154.97,7.92]
[1641427053874,28.61148243,155.0,154.97,7.92]
[1641427054076,5.80439994,154.99,154.97,7.92]
[1641427054276,5.80439994,154.99,154.93,10.20015724]
[1641427054478,6.06439994,154.99,154.93,7.92]
[1641427054873,6.06439994,154.99,154.94,0.25]
[1641427055273,15.74679994,154.99,154.94,0.25]
[1641427056177,0.25,154.98,154.93,7.92]
[1641427056376,9.6842,154.96,154.93,7.92]
[1641427056580,34.90168395,154.95,154.93,7.92]
[1641427056975,35.16168395,154.95,154.93,7.92]
[1641427057777,6.06439994,154.95,154.94,2.95817016]
[1641427057976,23.3019,155.02,154.94,3.21817016]
[1641427058181,0.25,155.01,154.95,0.25]
[1641427058778,9.6823,154.99,154.94,3.21817016]
[1641427059180,24.08804481,155.02,154.94,3.21817016]
[1641427059380,24.08804481,155.02,154.95,0.25]
[1641427059580,31.25386118,155.08,154.97,2.37712666]
[1641427059780,9.6787,155.05,154.98,7.92]
[1641427059981,9.6787,155.05,154.98,9.64315897]
[1641427060183,9.6787,155.05,154.98,9.39315897]
[1641427060391,9.6787,155.05,154.98,7.92]
[1641427060583,9.9387,155.05,154.98,7.92]
[1641427060785,9.9387,155.05,154.95,7.92]
[1641427060984,0.25,155.04,154.95,7.92]
[1641427061387,32.22474713,155.04,154.95,7.92]
[1641427061584,32.48474713,155.04,154.95,7.92]
[1641427061785,32.98474713,155.04,154.95,7.92]
[1641427062586,9.6818,155.0,154.95,7.92]
[1641427062783,26.61045392,154.99,154.95,7.92]
[1641427062985,26.87045392,154.99,154.95,7.92]
[1641427064089,36.55275392,154.99,154.95,7.92]
[1641427064488,36.55275392,154.99,154.92,10.26898737]
[1641427064689,26.87045392,154.99,154.92,7.92]
[1641427065091,26.87045392,154.99,154.93,0.25]
[1641427065290,26.61045392,154.99,154.93,0.25]
[1641427065989,26.61045392,154.99,154.94,2.54581018]
[1641427066190,26.61045392,154.99,154.95,0.25]
[1641427066830,26.87045392,154.99,154.95,0.25]
[1641427067327,26.87045392,154.99,154.93,0.25]
[1641427067626,36.55275392,154.99,154.94,2.36892216]
[1641427067828,36.55275392,154.99,154.92,7.92]
[1641427071031,36.29275392,154.99,154.92,7.92]
[1641427071232,36.29275392,154.99,154.92,17.603]
[1641427071639,36.29275392,154.99,154.93,0.25]
[1641427073537,36.55275392,154.99,154.93,0.25]
[1641427077245,36.29275392,154.99,154.94,2.4227173]
[1641427077443,36.29275392,154.99,154.93,9.9324]
[1641427077642,36.29275392,154.99,154.93,0.25]
[1641427078370,26.61045392,154.99,154.93,9.9324]
[1641427079169,26.61045392,154.99,154.93,0.25]
[1641427079368,26.61045392,154.99,154.92,7.92]
[1641427079568,0.25,154.98,154.9,7.92]
[1641427080271,0.25,154.98,154.86,5.13287354]
[1641427080468,0.25,154.98,154.86,22.73957354]
[1641427080469,9.6856,154.94,154.86,22.73957354]
[1641427080672,23.2462083,154.93,154.86,13.05287354]
[1641427080969,23.5062083,154.93,154.86,13.05287354]
[1641427081370,23.5062083,154.93,154.86,7.92]
[1641427081576,23.5062083,154.93,154.87,0.25]
[1641427081776,23.5062083,154.93,154.86,7.92]
[1641427082475,9.6874,154.91,154.86,7.92]
[1641427082670,24.39058039,154.9,154.87,1.47315897]
[1641427082870,24.39058039,154.9,154.86,7.92]
[1641427083069,24.65058039,154.9,154.86,7.92]
[1641427085472,34.33868039,154.9,154.86,7.92]
[1641427085873,34.33868039,154.9,154.83,9.6883]
[1641427086073,34.33868039,154.9,154.81,7.92]
[1641427086676,34.33868039,154.9,154.82,2.2004196]
[1641427086880,34.33868039,154.9,154.82,15.54167319]
[1641427087076,34.33868039,154.9,154.83,0.25]
[1641427087875,34.33868039,154.9,154.83,1.72315897]
[1641427088076,34.07868039,154.9,154.83,11.41155897]
[1641427088276,24.39058039,154.9,154.83,11.41155897]
[1641427088476,24.39058039,154.9,154.83,11.16155897]
[1641427088676,0.25,154.89,154.83,9.6884]
[1641427088976,24.39058039,154.9,154.84,3.65142028]
[1641427089180,79.5174,154.92,154.85,2.478078]
[1641427089577,24.8293,154.94,154.85,2.478078]
[1641427089978,24.8293,154.94,154.86,0.25]
[1641427090181,30.17466332,154.93,154.86,0.25]
[1641427090578,39.86156332,154.93,154.86,9.9369]
[1641427090979,39.86156332,154.93,154.83,7.92]
[1641427091178,0.25,154.92,154.83,7.92]
[1641427091979,0.25,154.92,154.84,2.90814051]
[1641427092581,0.25,154.92,154.83,7.92]
[1641427092582,7.92,154.83,154.82,9.6891]
[1641427092783,13.72439994,154.83,154.77,5.13287354]
[1641427092980,0.25,154.82,154.77,5.13287354]
[1641427093580,36.43855555,154.82,154.77,5.13287354]
[1641427093980,36.69855555,154.82,154.73,0.32301866]
[1641427094386,76.0884,154.81,154.73,0.32301866]
[1641427094584,0.25,154.8,154.73,0.32301866]
[1641427094783,9.6965,154.77,154.73,0.32301866]
[1641427094981,9.9565,154.77,154.73,0.32301866]
[1641427095182,0.25,154.76,154.73,0.32301866]
[1641427095388,0.25,154.76,154.7,5.13287354]
[1641427095389,47.80439994,154.75,154.7,5.13287354]
[1641427095682,0.25,154.74,154.7,5.13287354]
[1641427095885,42.0,154.73,154.67,5.48172505]
[1641427096084,9.7017,154.7,154.67,5.48172505]
[1641427096491,9.7017,154.7,154.67,2.505e-05]
[1641427096492,0.25,154.69,154.67,2.505e-05]
[1641427096684,0.25,154.69,154.55,107.45599268]
[1641427096685,26.0,154.67,154.56,7.92]
[1641427097084,26.26,154.67,154.56,7.92]
[1641427097287,26.26,154.67,154.57,2.25647794]
[1641427097486,30.46587948,154.66,154.57,2.25647794]
[1641427097786,9.7053,154.64,154.57,2.25647794]
[1641427098087,9.9653,154.64,154.57,2.25647794]
[1641427098486,9.9653,154.64,154.55,92.9]
[1641427098687,0.25,154.63,154.55,92.9]
[1641427098886,9.707,154.61,154.55,92.9]
[1641427099186,23.584158,154.6,154.58,3.65722219]
[1641427099389,5.80439994,154.59,154.58,3.65722219]
[1641427099589,6.06439994,154.59,154.58,3.65722219]
[1641427099788,6.06439994,154.59,154.58,96.55722219]
[1641427100188,6.31439994,154.59,154.58,3.65722219]
[1641427100389,6.31439994,154.59,154.56,3.65722219]
[1641427100595,6.06439994,154.59,154.56,3.65722219]
[1641427101393,6.06439994,154.59,154.52,3.65722219]
[1641427102290,5.80439994,154.59,154.52,3.65722219]
[1641427102698,5.80439994,154.59,154.53,2.69241388]
[1641427103095,5.80439994,154.59,154.53,4.16557285]
[1641427103492,5.80439994,154.59,154.53,2.69241388]
[1641427104123,6.06439994,154.59,154.53,2.69241388]
[1641427104297,6.06439994,154.59,154.55,1.82989023]
[1641427105402,6.06439994,154.59,154.56,2.6701434]
[1641427105602,6.06439994,154.59,154.54,1.82989023]
[1641427105603,5.80439994,154.59,154.54,1.82989023]
[1641427106400,5.80439994,154.59,154.56,1.82989023]
[1641427106601,5.80439994,154.59,154.57,0.26]
[1641427106806,23.584158,154.6,154.56,1.82989023]
[1641427107109,76.78,154.65,154.57,2.72811463]
[1641427107305,86.4851,154.65,154.57,2.72811463]
[1641427107505,24.3104,154.67,154.58,0.25]
[1641427107707,102.7451,154.68,154.58,2.07989023]
[1641427107905,102.7451,154.68,154.58,1.82989023]
[1641427108110,22.44135587,154.67,154.58,1.82989023]
[1641427108805,32.14525587,154.67,154.6,1.82989023]
[1641427109404,0.25,154.66,154.6,1.82989023]
[1641427109604,0.25,154.66,154.58,1.82989023]
[1641427110407,29.18901165,154.67,154.59,1.82989023]
[1641427110805,9.7045,154.66,154.59,1.82989023]
[1641427111006,9.9645,154.66,154.59,1.82989023]
[1641427111409,9.7045,154.66,154.59,1.82989023]
[1641427112032,9.7045,154.66,154.6,1.82989023]
[1641427112233,9.7045,154.66,154.6,4.24348165]
[1641427112835,29.18901165,154.67,154.6,4.24348165]